Cogmind - Beta 13 @@@ ROGUE MODE // 2024.04.22 @ 18:38:03 Player: e.v.o Result: Self-destructed Performance ------------- Evolutions (2) 1000 Regions Visited (3) 600 Robots Destroyed (28) 140 Value Destroyed (751) 751 Prototype IDs (1) 20 Alien Tech Used (0) 0 Bonus (0) 0 TOTAL SCORE: 2511 Bonus ------- None Cogmind --------- Core Integrity 196/550 Matter 295/300 Energy 100/100 System Corruption 0% Temperature Cool (9) Movement Walking (120) Location -8/Materials Parts ------- > --- POWER (1) -------- (None) > --- PROPULSION (3) --- Carbon-fiber Leg > --- UTILITY (5) ------ Small Storage Unit Improved Signal Interpreter System Shield System Shield > --- WEAPON (2) ------- (None) > --- INVENTORY (8) ---- Light Ion Engine Light Ion Engine Small Storage Unit Small Storage Unit ECM Suite Peak State ------------ > --- POWER ------------ Light Deuterium Engine > --- PROPULSION ------- Hover Unit Improved Hover Unit Improved Hover Unit > --- UTILITY ---------- Small Storage Unit Improved Sensor Array Hacking Suite System Shield System Shield > --- WEAPON ----------- Missile Launcher Katana > --- INVENTORY -------- Ion Engine Light Ion Engine ECM Suite Katana [Rating: 27] Favorites ----------- Power Light Ion Engine Engine Light Ion Engine Propulsion Improved Hover Unit Leg Aluminum Leg Hover Unit Improved Hover Unit Utility Small Storage Unit Device Structural Scanner Storage Small Storage Unit Processor Machine Analyzer Hackware System Shield Weapon Katana Energy Gun Medium Laser Energy Cannon Beam Cannon Ballistic Gun Light Assault Rifle Ballistic Cannon Light Cannon Launcher Grenade Launcher Slashing Weapon Katana Special Melee Weapon Datajack Build | -11 -10 -9 -8 ------- Run | Yrd Mat Mat Mat Slots Evolved 4 | . . 2 2 Power . | . . . . Propulsion 1 | . . 1 . Utility 3 | . . 1 2 Weapon . | . . . . Parts Attached 46 | 7 13 12 14 Power 6 | 1 2 1 2 Engine 6 | 1 2 1 2 Core . | . . . . Reactor . | . . . . Propulsion 13 | 2 4 3 4 Treads . | . . . . Leg 3 | 2 . . 1 Wheel . | . . . . Hover 10 | . 4 3 3 Flight . | . . . . Utility 14 | 1 2 5 6 Device 2 | . 1 . 1 Storage 4 | 1 . 1 2 Processor 4 | . 1 2 1 Hackware 4 | . . 2 2 Protection . | . . . . Artifact . | . . . . Weapon 13 | 3 5 3 2 Energy Gun 2 | 2 . . . Energy Cannon 1 | . 1 . . Ballistic Gun 1 | 1 . . . Ballistic Cannon 1 | . 1 . . Launcher 5 | . 2 2 1 Special Weapon . | . . . . Impact Weapon . | . . . . Slashing Weapon 2 | . . 1 1 Piercing Weapon . | . . . . Special Melee Weapon 1 | . 1 . . Unidentified Prototypes 1 | . . . 1 Parts Lost 14 | . 2 . 12 Power 1 | . . . 1 Propulsion 7 | . 2 . 5 Utility 3 | . . . 3 Weapon 3 | . . . 3 Highest Loss Streak 9 | . 2 . 9 To Critical Strikes . | . . . . Average Slot Usage (%) 94 | . 95 99 87 Engine 11 | . 14 11 8 Leg 4 | . 8 . . Hover 22 | . 19 33 20 Device 3 | . 5 . 3 Storage 11 | . 14 11 9 Processor 6 | . 5 15 . Hackware 9 | . . 6 27 Energy Gun 5 | . 11 . . Energy Cannon 3 | . 1 9 . Ballistic Cannon 2 | . 5 . . Launcher 8 | . 7 10 7 Slashing Weapon 2 | . . 1 9 Naked Turns . | . . . . Heaviest Build 19 | 14 15 19 19 Greatest Support 20 | 20 20 20 20 Greatest Overweight (x) 2 | . 1 . 2 Average Overweight (x) . | . . . . Largest Inventory Capacity 8 | 8 8 8 8 Average Capacity 7 | 6 8 8 8 Most Carried 8 | 2 8 8 7 Average Carried 5 | . 5 7 4 Final Capacity 8 | 8 8 8 8 Final Carried 8 | 2 8 7 5 Class Distribution -------------------- 71% | Mutant 28% | Hacker-Mutant Dominant Class ---------------- Mutant | -10/Materials Mutant | -9/Materials Hacker-Mutant | -8/Materials Resources | -11 -10 -9 -8 ----------- Run | Yrd Mat Mat Mat Matter Collected 773 | 251 215 166 141 Remotely . | . . . . Salvage Created 901 | . 312 172 417 Parts 52 | . 20 9 23 Haulers Intercepted 3 | . 2 1 . Recyclers Shooed 2 | . 2 . . Parts Field Recycled . | . . . . Retrieved Matter . | . . . . Parts Self-Destructed . | . . . . Prevented . | . . . . Kills | -11 -10 -9 -8 ------- Run | Yrd Mat Mat Mat Combat Hostiles Destroyed 14 | . 5 3 6 Melee 4 | . . . 4 Guns 3 | . 3 . . Cannons 4 | . 1 3 . AOE 3 | . 1 . 2 Classes Destroyed 10 | . 7 1 2 Builder 2 | . 1 . 1 Hauler 3 | . 2 1 . Recycler 3 | . 1 . 2 Mechanic 1 | . 1 . . Watcher 5 | . 3 . 2 Swarmer 2 | . 2 . . Grunt 8 | . 3 2 3 Duelist 1 | . . . 1 Sentry 2 | . . 1 1 Hunter 1 | . . . 1 Best Kill Streak 6 | . 6 3 4 Combat Bots Only 4 | . 4 2 4 Max Kills in Single Turn 3 | . 3 1 1 Gunslinging . | . . . . Exploded 1 | . 1 . 1 Melee 1 | . . . 1 Uniques/NPCs Destroyed . | . . . . Combat | -11 -10 -9 -8 -------- Run | Yrd Mat Mat Mat Hostile Shots Fired 128 | . 24 7 97 Missed 43 | . 5 5 33 Damage Taken 1344 | . 224 24 1096 Core 404 | . 50 . 354 Absorbed by Shields . | . . . . Core Remaining (%) 93 | 100 80 100 . Volleys Fired 54 | . 39 13 2 Largest 2 | . 2 2 1 Hottest 90 | . 90 90 36 Shots Fired 65 | . 48 15 2 Gun 16 | . 16 . . Cannon 42 | . 29 13 . Launcher 7 | . 3 2 2 Special . | . . . . Kinetic 28 | . 28 . . Thermal 24 | . 11 13 . Explosive 7 | . 3 2 2 Electromagnetic 6 | . 6 . . Robot Hit Streak 10 | . 10 6 1 Robot Miss Streak 3 | . 3 3 1 Penetration Max . | . . . . Secondary Targets . | . . . . Shots Hit Robots 63 | . 28 9 26 Core Hits 38 | . 15 7 16 Critical Kills . | . . . . Critical Parts Destroyed . | . . . . Critical Strikes 3 | . . . 3 Sever 3 | . . . 3 Melee Attacks 33 | . . . 33 Impact . | . . . . Slashing 33 | . . . 33 Piercing . | . . . . Sneak Attacks 3 | . . . 3 Combat Hostiles . | . . . . Follow-up Attacks 2 | . . . 2 Damage Inflicted 2145 | . 630 192 1323 Guns 96 | . 96 . . Cannons 522 | . 365 157 . Explosions 627 | . 169 35 423 Melee 900 | . . . 900 Ramming . | . . . . Kinetic 347 | . 347 . . Thermal 238 | . 81 157 . Explosive 627 | . 169 35 423 Electromagnetic 33 | . 33 . . Impact . | . . . . Slashing 900 | . . . 900 Piercing . | . . . . Highest Corruption . | . . . . Average Corruption . | . . . . Corruption Purged . | . . . . Corruption Blocked . | . . . . Overload Shots . | . . . . Overflow Damage 128 | . 43 . 85 Projectiles 4 | . 4 . . Explosions 55 | . 39 . 16 Melee 69 | . . . 69 Knockbacks 2 | . 2 . . Impact . | . . . . Kinetic 2 | . 2 . . Secondary . | . . . . Self-Inflicted Damage 109 | . 32 . 77 Shots 3 | . 1 . 2 Rammed . | . . . . Targets Rammed . | . . . . Kicked . | . . . . Crushed . | . . . . Highest Temperature 274 | . 274 70 3 Average Temperature 82 | . 131 26 2 Received Heat Transfer 318 | . 72 12 234 Effects 1 | . 1 . . Interference 1 | . 1 . . Siege Activations . | . . . . Robots Corrupted . | . . . . Combat Hostiles . | . . . . Parts Fried . | . . . . Impact Corruptions . | . . . . Robots Melted . | . . . . Combat Hostiles . | . . . . Parts Melted . | . . . . Heat Transferred 555 | . 222 333 . Parts Sabotaged . | . . . . Parts Stolen . | . . . . Parts Stripped . | . . . . Power Chain Reactions . | . . . . Alert | -11 -10 -9 -8 ------- Run | Yrd Mat Mat Mat Peak Influence 377 | . 308 236 377 Initial 99 | . . 57 99 Average 166 | . 136 145 262 Maximum Alert Level 1 | . 1 1 1 Low Security (%) 56 | 100 69 70 15 Level 1 43 | . 30 29 84 Level 2 . | . . . . Level 3 . | . . . . Level 4 . | . . . . Level 5 . | . . . . High Security . | . . . . Max Security . | . . . . Squads Dispatched 1 | . 1 . . Investigation 1 | . 1 . . Extermination . | . . . . Reinforcement . | . . . . Assault . | . . . . Garrison . | . . . . Intercept . | . . . . Searches Triggered . | . . . . Construction Impeded . | . . . . Haulers Reinforced . | . . . . Active Scanning Responses . | . . . . Cargo Convoy Interrupts . | . . . . Stealth | -11 -10 -9 -8 --------- Run | Yrd Mat Mat Mat Distress Signals 2 | . 1 . 1 Communications Jammed . | . . . . Distress Signals . | . . . . Times Spotted 34 | . 12 5 17 Peak Tracking Total 9 | . 3 3 9 Tactical Retreats . | . . . . Traps | -11 -10 -9 -8 ------- Run | Yrd Mat Mat Mat Traps Triggered 1 | . 1 . . Indirectly . | . . . . Trap Hack Attempts 15 | . 15 . . Triggered . | . . . . Disarmed 1 | . 1 . . Reprogrammed . | . . . . Reused . | . . . . Traps Extracted . | . . . . Installed . | . . . . Triggered . | . . . . Machines | -11 -10 -9 -8 ---------- Run | Yrd Mat Mat Mat Machines Disabled 7 | . 5 1 1 Max in Single Turn 4 | . 4 1 1 Machines Repaired . | . . . . Machines Dismantled . | . . . . Machines Sabotaged . | . . . . Overloaded Fab Kills . | . . . . Hacking | -11 -10 -9 -8 --------- Run | Yrd Mat Mat Mat Machines Accessed 9 | . 4 4 1 Terminals 7 | . 3 3 1 Fabricators . | . . . . Repair Stations . | . . . . Recycling Units 1 | . 1 . . Scanalyzers 1 | . . 1 . Garrison Access . | . . . . Total Hacks 36 | . 13 15 8 Successful 25 | . 8 12 5 Failed 11 | . 5 3 3 Catastrophic 1 | . . 1 . Database Lockouts . | . . . . Manual . | . . . . Terminals 27 | . 12 7 8 Fabricators . | . . . . Repair Stations . | . . . . Recycling Units 1 | . 1 . . Scanalyzers 8 | . . 8 . Garrison Access . | . . . . Terminal Hacks 16 | . 7 4 5 Record 4 | . 4 . . Robot Analysis 1 | . . 1 . Alert Level 1 | . 1 . . Locate Traps 1 | . . 1 . Maintenance Status 1 | . . . 1 Surveillance Status 1 | . . . 1 Hauler Manifests 3 | . 1 1 1 Registered Prototypes 1 | . . . 1 Zone Layout 3 | . 1 1 1 Fabricator Hacks . | . . . . Repair Station Hacks . | . . . . Recycling Unit Hacks 1 | . 1 . . Report Inventory 1 | . 1 . . Scanalyzer 8 | . . 8 . Insert Component 4 | . . 4 . Analyze 4 | . . 4 . Garrison Access Hacks . | . . . . Unauthorized Hacks . | . . . . Terminals . | . . . . Fabricators . | . . . . Repair Stations . | . . . . Recycling Units . | . . . . Scanalyzers . | . . . . Garrison Access . | . . . . Data Cores Recovered . | . . . . Used . | . . . . Hacking Detections 6 | . 2 3 1 Full Trace Events . | . . . . Feedback Events . | . . . . Feedback Blocked . | . . . . Robot Schematics Acquired . | . . . . Robots Built . | . . . . Authchips . | . . . . Time . | . . . . Total Robot Build Rating . | . . . . Part Schematics Acquired 4 | . . 4 . Parts Built . | . . . . Authchips . | . . . . Time . | . . . . Total Part Build Rating . | . . . . Parts Repaired . | . . . . Time . | . . . . Parts Recycled . | . . . . Recycled Matter . | . . . . Retrieved Matter . | . . . . Retrieved Components . | . . . . Parts Scanalyzed 4 | . . 4 . Part Schematics Acquired 4 | . . 4 . Parts Damaged . | . . . . Bothacking | -11 -10 -9 -8 ------------ Run | Yrd Mat Mat Mat Used RIF Installer . | . . . . Robots Hacked . | . . . . Non-combat . | . . . . Combat . | . . . . Robot Hacks Applied . | . . . . Relay Couplers Released . | . . . . Fabnet Peak Effective % . | . . . . Robots Rewired . | . . . . Allies Hacked . | . . . . Hacks Repelled . | . . . . Allies | -11 -10 -9 -8 -------- Run | Yrd Mat Mat Mat Total Allies . | . . . . Largest Group . | . . . . Highest-Rated Group . | . . . . Highest-Rated Ally . | . . . . Total Orders . | . . . . Ally Attacks . | . . . . Total Damage . | . . . . Kills . | . . . . Allies Corrupted . | . . . . Allies Melted . | . . . . Intel | -11 -10 -9 -8 ------- Run | Yrd Mat Mat Mat Robot Analysis Total 1 | . . 1 . Derelict Logs Recovered . | . . . . Drone Launches . | . . . . Drone Recoveries . | . . . . Exploration | -11 -10 -9 -8 ------------- Run | Yrd Mat Mat Mat Turns Passed 978 | 50 446 213 269 Spaces Moved 878 | 36 407 280 155 Core 7 | 7 . . . Treads . | . . . . Legs 133 | 29 104 . . Wheels . | . . . . Hover 738 | . 303 280 155 Flight . | . . . . Fastest Speed 50 | 50 56 52 52 Average Speed 68 | 106 72 52 76 Slowest Speed 180 | 120 120 52 180 Overloaded Moves . | . . . . Propulsion Burnouts . | . . . . Robots Hopped . | . . . . Cave-ins Triggered . | . . . . Exploration Rate (%) 27 | 3 67 22 19 Regions Visited 3 Branch Regions . Pre-discovered Areas . | . . . . Known Exits Taken . | . . . . Unknown Exits Taken 3 | 1 1 1 . Scrap Searched . | . . . . Spaces Dug 1 | . . . 1 Terrain Destroyed 80 | . 25 15 40 Melee 1 | . . . 1 Projectile . | . . . . AOE 79 | . 25 15 39 Terrain Rammed . | . . . . Walls Destroyed . | . . . . Machines Disabled . | . . . . Actions | -11 -10 -9 -8 --------- Run | Yrd Mat Mat Mat Total 1143 | 44 513 333 253 Wait 57 | . 1 11 45 Move 875 | 35 406 279 155 Hop . | . . . . Pick Up 34 | 2 22 7 3 Fast Attach 17 | 6 3 4 4 Attach 12 | . 4 2 6 Detach . | . . . . Swap 17 | 1 6 6 4 Drop 31 | . 17 11 3 Fire 54 | . 39 13 2 Melee 31 | . . . 31 Ram . | . . . . Kick . | . . . . Crush . | . . . . Escape Stasis . | . . . . Rewire . | . . . . Trap 15 | . 15 . . Miscellaneous . | . . . . Route ------- -11/Scrapyard -10/Materials (discovered 2 exits: *Mat / [*Min]) -9/Materials (discovered 2 exits: *Mat / [*Min]) -8/Materials (discovered 1 exit: [*Sto]) History --------- Turn | Location | Event 5 | -11/Scrapyard | Discovered new exit (range 15) 51 | -11/Scrapyard | Entered Materials 132 | -10/Materials | Discovered new exit (range 10) 307 | -10/Materials | Build established: Mutant 392 | -10/Materials | Discovered new exit (range 14) 497 | -10/Materials | Entered another Materials area 497 | -9/Materials | Evolved 2 slots: Propulsion x1, Utility x1 502 | -9/Materials | Discovered new exit (range 12) 704 | -9/Materials | Discovered new exit (range 10) 710 | -9/Materials | Entered another Materials area 710 | -8/Materials | Evolved 2 slots: Utility x2 712 | -8/Materials | Discovered new exit (range 14) 781 | -8/Materials | Lost 3 parts (2n1u) 975 | -8/Materials | Core integrity fell below 50% 979 | -8/Materials | Self-destructed Last Messages --------------- 00950_ Slug penetrates Repair Station. 00957_ R-06 Scavenger collects Lgt. Deuterium Engine. 00957_ G-47 Trooper Lgt. Nuclear Core severed. 00957_ Katana follow-up attack on G-47 Trooper. 00959_ Slug penetrates Wall. 00960_ G-47 Trooper Aluminum Leg severed. 00961_ R-06 Scavenger collects Aluminum Leg. 00962_ Penetrated by Slug. 00962_ Imp. Hover Unit destroyed. 00965_ Lgt. Ion Engine destroyed. 00965_ Imp. Hover Unit destroyed. 00966_ Katana follow-up attack on G-47 Trooper. 00966_ G-47 Trooper destroyed. 00969_ Katana destroyed. 00971_ Penetrated by Slug. 00971_ Hover Unit destroyed. 00974_ Penetrated by Slug. 00974_ Hacking Suite destroyed. 00977_ Katana destroyed. Map ----- +----------------------------------------------------+ | ???????????????????# #???????????????????? | | ????????############ #???????????????????? | | ????????# # #???????????????????? | | ????????# + #???????????????????? | | ????????# # ! #???????????????????? | | ?????" + ###### # ####+##?????????????? | | ?????" # #????#*# ## ?????????????? | | ?????" # #?####+############ ?????????????? | | ????? # #?# !=*=!!* #?# ?????????????? | | ?????#### #?# """%""" """ #?# ?????????????? | | ????????# #?# """%""" """ #?# ?????????????? | | ?????#### #?# """ """ """ #?### ##?????????????? | | ????? # #?# ! #???# #??????????????? | | ?????"" # #?# = #??## ##?????????????? | | ?????"" # #########+########## #?????????????? | | ?????"" # ! ???????????? | | ????? # ###### #?????????????? | | ?????"" # """ #????#####?????????????? | | ?????"" # """ #+#########??????????????? | | ?????"" + """ # Y #??????????????? | | ????? # "T" # """" !! #??????????????? | | ?????#### # ""R" !! #??????????????? | | ????? # "" " !! #??????????????? | | ????? !#hg ### ????????? | | ????? *Y% % g/ + ????????? | | ????? #@l ##?????????????? | | ????? """ """ """ # #??????????????? | | ????? """ """ """ ##############?????????????? | | ????? """ """ """ # ?????????????? | | ????? # """ ?????????????? | | ????? # """ """ "Y" ?????????????? | | ????? + """ """ ?????????????? | | ????? # """ """ ?????????????? | | ?????############## # ?????????????? | | ????? # # ##############?????????????? | | ????? "T" # # #??????????????????????????? | | ??????????????????? ????????????????????????????? | | ?????????????????????????????????????????????????? | | ?????????????????????????????????????????????????? | | ?????????????????????????????????????????????????? | | ?????????????????????????????????????????????????? | | ?????????????????????????????????????????????????? | | ?????????????????????????????????????????????????? | | ?????????????????????????????????????????????????? | | ?????????????????????????????????????????????????? | | ?????????????????????????????????????????????????? | | ?????????????????????????????????????????????????? | | ?????????????????????????????????????????????????? | | ?????????????????????????????????????????????????? | | ?????????????????????????????????????????????????? | +----------------------------------------------------+ Best States ------------- Heat Dissipation 31 Energy Generation 14 Energy Capacity 250 Matter Stores 300 Matter Capacity 300 Sight Range 20 Robot Scan Range 15 Terrain Scan Density 10 Evasion (%) 55 Targeting Accuracy 6 Offensive Hacking 20 Defensive Hacking 20 Item Schematics ----------------- Hover Unit | -9/Materials | Scanalyzed Imp. Hover Unit | -9/Materials | Scanalyzed ECM Suite | -9/Materials | Scanalyzed Lgt. EM Pulse Cannon | -9/Materials | Scanalyzed Robot Schematics ------------------ None Fabricated ------------ Nothing Alien Tech Used ----------------- None Achievements -------------- None Challenges ------------ None Game ------ Seed BattleImpulseInitializer Manual? 0 Play Time 00:27:08 Cumulative 31.7 hours Start 2024.04.22 @ 11:57:14 End 2024.04.22 @ 18:38:03 Sessions 3 Manual Loads 0 Difficulty Rogue Special Mode None Game No. 47 Rogue 31 Adventurer 16 Explorer 0 Win Type - Total 0 Types 0/0/0/0/0/0/0/0/0 Lore% 10 Gallery% 29 Achievement% 20 Wizard Run 0 Options --------- Layout 2 ASCII 0 Keyboard 0 Movement Mouse Keybinds 0 Fullscreen 2 Font 24/Smallcaps Map View 50x44 Zoom Use 3% Tactical HUD 1 Map Filters NONE Filters NONE Steam 1 RUN: 6e1f054b-29e6-46b5-8619-de644fdb817e